bitfinex/quotes_SOLUSD_20241020
["timestamp","ask_amount","ask_price","bid_price","bid_amount"]
[1729465536039,0.89804253,167.05,166.94,0.1]
[1729465536454,0.99804253,167.05,166.94,0.1]
[1729465536651,0.99804253,167.05,166.93,0.1]
[1729465536860,0.99804253,167.05,166.94,0.1]
[1729465537343,23.776884,167.04,166.93,0.1]
[1729465537541,0.1,167.03,166.92,0.1]
[1729465537752,0.1,167.03,166.93,0.1]
[1729465537950,0.1,167.03,166.94,0.1]
[1729465538239,0.1,167.03,166.93,0.1]
[1729465538664,0.1,167.03,166.92,0.1]
[1729465538965,0.1,167.03,166.93,0.1]
[1729465539345,0.1,167.03,166.94,0.1]
[1729465539842,0.1,167.03,166.93,0.1]
[1729465540045,0.1,167.03,166.92,0.1]
[1729465540454,0.1,167.03,166.93,0.1]
[1729465541360,0.1,167.03,166.92,0.1]
[1729465541534,0.1,167.01,166.91,0.1]
[1729465541859,0.1,167.03,166.92,0.1]
[1729465542365,0.1,167.02,166.92,0.1]
[1729465544152,0.1,167.02,166.9,0.1]
[1729465544345,0.1,167.02,166.92,0.1]
[1729465544660,0.1,167.0,166.91,20.0]
[1729465545159,0.1,167.0,166.91,20.1]
[1729465545543,0.1,167.0,166.91,20.0]
[1729465545768,0.1,167.0,166.91,20.1]
[1729465545950,0.1,167.0,166.91,20.0]
[1729465546545,0.1,166.99,166.91,20.0]
[1729465547164,0.1,166.99,166.89,20.1]
[1729465548049,0.1,166.99,166.9,0.1]
[1729465548449,0.1,166.99,166.89,20.0]
[1729465548649,23.776884,166.97,166.88,20.1]
[1729465548853,23.776884,166.97,166.88,20.0]
[1729465549157,23.776884,166.97,166.88,20.1]
[1729465549746,23.776884,166.97,166.88,20.0]
[1729465549747,24.67524932,166.97,166.88,20.0]
[1729465549947,24.67524932,166.97,166.88,20.1]
[1729465552741,23.776884,166.97,166.88,20.1]
[1729465554457,23.776884,166.97,166.88,20.0]
[1729465554672,23.776884,166.97,166.88,20.1]
[1729465555780,23.776884,166.97,166.88,20.0]
[1729465556081,23.776884,166.97,166.88,20.1]
[1729465556883,23.776884,166.97,166.88,0.1]
[1729465557576,23.776884,166.97,166.87,20.1]
[1729465557771,23.776884,166.97,166.88,0.1]
[1729465560963,45.34852456,166.98,166.88,0.1]
[1729465561284,32.20222456,166.98,166.9,20.1]
[1729465561575,0.89832456,166.98,166.9,25.79335078]
[1729465561783,0.89832456,166.98,166.91,0.1]
[1729465562584,0.89832456,166.98,166.9,25.79335078]
[1729465563883,0.89832456,166.98,166.91,0.1]
[1729465564087,0.89832456,166.98,166.9,25.79335078]
[1729465564290,0.89832456,166.98,166.9,25.69335078]
[1729465564582,23.776884,166.97,166.9,25.69335078]
[1729465564965,23.776884,166.97,166.88,0.1]
[1729465565164,23.776884,166.97,166.87,0.1]
[1729465565485,23.776884,166.97,166.86,25.69335078]
[1729465565486,23.776884,166.97,166.88,0.1]
[1729465565686,23.776884,166.97,166.87,0.1]
[1729465565895,23.776884,166.97,166.88,0.1]
[1729465566480,23.776884,166.97,166.89,0.1]
[1729465566684,23.776884,166.97,166.87,0.1]
[1729465566880,23.776884,166.97,166.88,0.1]
[1729465567389,23.776884,166.97,166.88,20.1]
[1729465567997,23.776884,166.97,166.88,20.0]
[1729465568212,23.776884,166.97,166.88,20.1]
[1729465568397,23.776884,166.97,166.89,5.69335078]
[1729465568694,0.89828548,166.98,166.83,5.69335078]
[1729465568695,0.1,166.93,166.83,5.69335078]
[1729465569082,0.1,166.92,166.83,5.69335078]
[1729465569476,0.1,166.91,166.83,5.69335078]
[1729465569683,46.6395,166.88,166.8,140.6122939]
[1729465569866,23.876884,166.87,166.8,140.6122939]
[1729465570374,0.1,166.86,166.8,140.6122939]
[1729465571014,11.98,166.95,166.84,0.1]
[1729465571015,43.7034,166.95,166.84,0.1]
[1729465571301,43.7034,166.95,166.85,5.90035025]
[1729465571594,0.1,166.94,166.85,5.90035025]
[1729465571792,0.1,166.94,166.83,0.1]
[1729465571995,0.1,166.94,166.81,51.21415025]
[1729465571996,0.1,166.94,166.82,20.0]
[1729465572375,23.876884,166.94,166.82,20.1]
[1729465572676,0.1,166.93,166.82,20.1]
[1729465572871,0.1,166.92,166.82,20.0]
[1729465573081,0.1,166.92,166.82,19.5]
[1729465573770,0.1,166.92,166.82,19.6]
[1729465574081,0.1,166.9,166.82,19.5]
[1729465574286,0.1,166.9,166.81,5.90035025]
[1729465574479,0.1,166.89,166.8,140.6122939]
[1729465575000,23.776884,166.86,166.8,140.6122939]
[1729465575297,23.876884,166.86,166.8,140.6122939]
[1729465575689,0.1,166.85,166.8,140.6122939]
[1729465575891,0.1,166.82,166.8,140.6122939]
[1729465576582,0.1,166.81,166.8,140.6122939]
[1729465576782,23.876884,166.81,166.8,140.6122939]
[1729465577295,36.352284,166.81,166.8,140.6122939]
[1729465577597,67.909984,166.81,166.8,140.6122939]
[1729465577994,68.80938123,166.81,166.8,140.6122939]
[1729465578183,73.60518123,166.81,166.8,107.2789939]
[1729465578388,91.54518123,166.81,166.8,73.9456939]
[1729465578695,91.54518123,166.81,166.8,60.6123939]
[1729465579280,91.54518123,166.81,166.63,1.65438011]
[1729465579281,12.8165,166.72,166.63,1.65438011]
[1729465579491,12.8165,166.72,166.63,0.6122939]
[1729465579682,0.1,166.71,166.63,0.6122939]
[1729465580196,0.1,166.75,166.65,0.1]
[1729465580577,0.1,166.74,166.63,6.61264415]
[1729465580779,0.1,166.75,166.65,0.1]
[1729465581476,0.1,166.75,166.66,30.7537]
[1729465581678,0.1,166.75,166.67,20.0]
[1729465583901,0.1,166.75,166.67,20.1]
[1729465585185,0.1,166.74,166.67,20.0]
[1729465585706,0.1,166.72,166.63,20.6122939]
[1729465585882,0.1,166.72,166.63,0.6122939]
[1729465586202,0.1,166.72,166.63,0.7122939]
[1729465587209,0.1,166.72,166.63,20.7122939]
[1729465587707,0.1,166.71,166.63,20.6122939]
[1729465590402,0.1,166.69,166.63,0.6122939]
[1729465591008,0.1,166.68,166.63,0.6122939]
[1729465591385,0.1,166.67,166.63,0.6122939]
[1729465591882,0.1,166.64,166.63,0.6122939]
[1729465595513,0.1,166.66,166.63,0.6122939]
[1729465596210,0.1,166.7,166.63,0.6122939]
[1729465596907,0.1,166.69,166.63,0.6122939]
[1729465597109,0.1,166.68,166.63,0.6122939]
[1729465597496,0.1,166.69,166.63,0.6122939]
[1729465597897,0.1,166.7,166.63,0.6122939]
[1729465603301,23.876884,166.71,166.63,0.6122939]
[1729465605232,23.776884,166.71,166.63,0.6122939]
[1729465605601,23.776884,166.71,166.64,0.1]
[1729465605923,0.90012553,166.72,166.63,0.2122939]
[1729465607410,23.776884,166.71,166.63,0.2122939]
[1729465608006,0.90012553,166.72,166.65,20.0]
[1729465609521,0.1,166.78,166.67,20.0]
[1729465609706,0.1,166.79,166.67,20.0]
[1729465609913,0.1,166.8,166.67,25.90035025]
[1729465610416,0.89947204,166.82,166.67,20.0]
[1729465610417,0.2,166.79,166.67,20.0]
[1729465610603,0.1,166.77,166.67,20.0]
[1729465611223,0.2,166.77,166.67,20.0]
[1729465611523,0.1,166.76,166.67,20.0]
[1729465611724,0.2,166.77,166.67,20.0]
[1729465611933,0.1,166.76,166.67,20.0]
[1729465612225,0.2,166.76,166.67,20.0]
[1729465612600,0.1,166.76,166.67,20.0]
[1729465612803,0.2,166.76,166.67,20.0]
[1729465613523,0.1,166.77,166.67,20.0]
[1729465613735,0.1,166.8,166.67,20.0]
[1729465614124,0.2,166.8,166.67,20.0]
[1729465614733,0.89947204,166.82,166.67,20.0]
[1729465614905,0.89947204,166.82,166.69,20.0]
[1729465615108,0.99947204,166.82,166.69,20.0]
[1729465616802,23.776884,166.81,166.69,20.0]
[1729465617006,0.1,166.8,166.69,20.0]
[1729465617221,0.1,166.79,166.69,20.0]
[1729465617422,0.1,166.8,166.69,20.0]
[1729465617423,0.1,166.78,166.69,20.0]
[1729465618230,0.2,166.78,166.69,20.0]
[1729465619034,0.2,166.79,166.69,20.0]
[1729465619537,0.1,166.78,166.69,20.0]
[1729465619927,0.2,166.78,166.69,20.0]
[1729465620310,23.876884,166.81,166.69,20.0]
[1729465620523,23.776884,166.81,166.69,20.0]
[1729465620838,0.89947204,166.82,166.69,20.0]
[1729465621030,0.89947204,166.82,166.71,20.0]
[1729465621612,0.89947204,166.82,166.69,20.0]
[1729465621812,0.1,166.8,166.69,20.0]
[1729465622413,0.1,166.78,166.69,20.0]
[1729465623931,0.1,166.77,166.69,20.0]
[1729465624436,0.1,166.77,166.68,33.0008]
[1729465624812,0.1,166.76,166.68,33.0008]
[1729465625848,0.1,166.76,166.69,20.0]
[1729465628712,24.67623685,166.78,166.62,12.12602159]
[1729465628713,0.1,166.74,166.64,31.2423]
[1729465630137,0.1,166.74,166.65,20.0]
[1729465631020,0.1,166.73,166.65,20.0]
[1729465631221,0.1,166.72,166.64,31.2423]
[1729465631538,0.1,166.7,166.63,0.2122939]
[1729465632037,24.67623685,166.78,166.63,0.2122939]
[1729465632038,0.1,166.73,166.63,0.2122939]
[1729465632240,0.1,166.74,166.63,0.2122939]
[1729465632417,0.1,166.73,166.63,0.2122939]
[1729465632740,0.1,166.75,166.63,0.2122939]
[1729465633041,0.1,166.76,166.63,0.2122939]
[1729465633424,0.1,166.77,166.63,0.2122939]
[1729465633825,0.1,166.75,166.63,0.2122939]
[1729465636143,0.1,166.75,166.64,20.0]
[1729465637528,23.776884,166.74,166.64,20.0]
[1729465638629,24.67661284,166.74,166.64,20.0]
[1729465638828,0.89972884,166.74,166.66,20.0]
[1729465640322,0.89972884,166.74,166.66,25.90035025]
[1729465640722,0.89972884,166.74,166.68,20.0]
[1729465641318,0.89972884,166.74,166.66,20.0]
[1729465642143,0.89972884,166.74,166.67,5.90035025]
[1729465642440,0.89972884,166.74,166.68,20.0]
[1729465642820,1.0,166.75,166.68,20.0]
[1729465643724,1.0,166.75,166.7,20.0]
[1729465645438,1.0,166.75,166.72,20.0]
[1729465649128,1.0,166.75,166.71,30.4858]
[1729465649333,1.0,166.75,166.66,31.1051]
[1729465650345,1.0,166.75,166.67,20.0]
[1729465651850,1.0,166.75,166.63,0.2122939]
[1729465651851,0.1,166.73,166.63,0.2122939]
[1729465652230,0.1,166.72,166.63,0.2122939]
[1729465652743,0.1,166.71,166.63,0.2122939]
[1729465653433,0.1,166.71,166.63,20.2122939]
[1729465653744,0.1,166.72,166.63,20.2122939]
[1729465653922,0.1,166.71,166.63,0.2122939]
[1729465654339,19.876884,166.74,166.63,0.2122939]
[1729465655037,19.876884,166.74,166.63,20.2122939]
[1729465655930,19.976884,166.74,166.63,20.2122939]
[1729465656331,23.776884,166.69,166.63,0.2122939]
[1729465657048,23.776884,166.74,166.63,0.2122939]
[1729465658040,32.3591,166.7,166.63,0.2122939]
[1729465658247,23.776884,166.69,166.63,0.2122939]
[1729465658643,32.3591,166.7,166.63,0.2122939]
[1729465658841,23.776884,166.74,166.63,0.3122939]
[1729465659343,23.776884,166.74,166.63,20.3122939]
[1729465659552,23.776884,166.74,166.63,20.2122939]
[1729465659749,23.776884,166.74,166.63,20.3122939]
[1729465659952,23.776884,166.74,166.63,20.2122939]
[1729465660545,23.776884,166.74,166.63,20.3122939]
[1729465661839,23.776884,166.74,166.63,20.2122939]
[1729465663877,23.776884,166.74,166.63,20.3122939]
[1729465664854,1.89981339,166.75,166.66,0.1]
[1729465665084,1.89981339,166.75,166.69,0.1]
[1729465665362,1.89981339,166.75,166.71,20.0]
[1729465668495,1.89981339,166.75,166.69,20.0]
[1729465668656,1.89981339,166.75,166.67,20.0]
[1729465668858,23.776884,166.74,166.67,20.0]
[1729465669053,23.776884,166.74,166.61,31.0179]
[1729465669374,23.776884,166.74,166.62,0.1]
[1729465669677,23.776884,166.74,166.61,31.1179]
[1729465669884,23.876884,166.74,166.61,31.0179]
[1729465670096,36.102884,166.74,166.61,31.0179]
[1729465670260,36.102884,166.74,166.62,0.1]
[1729465670586,36.102884,166.74,166.63,0.3122939]
[1729465671467,36.002884,166.74,166.63,0.3122939]
[1729465671676,36.102884,166.74,166.63,0.3122939]
[1729465671875,36.102884,166.74,166.63,0.2122939]
[1729465672566,40.800984,166.74,166.63,0.2122939]
[1729465672770,23.876884,166.72,166.63,0.2122939]
[1729465672969,28.675284,166.72,166.63,0.2122939]
[1729465673172,29.47520318,166.72,166.63,0.2122939]
[1729465673362,24.77680318,166.72,166.63,0.2122939]
[1729465673563,24.67680318,166.72,166.63,0.2122939]
[1729465674076,29.57520318,166.72,166.63,0.2122939]
[1729465674658,29.47520318,166.72,166.63,0.2122939]
[1729465674987,24.67680318,166.72,166.63,0.2122939]
[1729465675370,4.799,166.7,166.63,0.2122939]
[1729465675564,24.67680318,166.72,166.63,0.2122939]
[1729465675565,29.47530318,166.72,166.63,0.2122939]
[1729465675889,23.776884,166.7,166.63,0.2122939]
[1729465677883,4.7997,166.68,166.63,0.2122939]
[1729465678084,0.1,166.7,166.63,0.2122939]
[1729465678295,23.776884,166.67,166.63,0.2122939]
[1729465678782,29.47689811,166.67,166.63,0.2122939]
[1729465679083,42.72459811,166.67,166.63,0.2122939]
[1729465679768,23.776884,166.65,166.63,0.2122939]
[1729465680278,23.776884,166.66,166.63,0.2122939]
[1729465681283,14.14781411,166.67,166.63,0.2122939]
[1729465681284,0.90011411,166.67,166.63,0.2122939]
[1729465682890,23.776884,166.66,166.63,0.2122939]
[1729465687082,41.716884,166.66,166.63,0.2122939]
[1729465688274,23.776884,166.66,166.63,0.2122939]
[1729465689091,17.94,166.65,166.63,0.2122939]
[1729465689295,23.776884,166.64,166.63,0.2122939]
[1729465689594,46.517584,166.64,166.63,0.2122939]
[1729465689793,46.617584,166.64,166.63,0.2122939]
[1729465689984,46.617584,166.64,166.5,6.13396267]
[1729465689985,17.94,166.62,166.5,6.13396267]
[1729465690163,23.876884,166.64,166.5,6.13396267]
[1729465690164,0.90011411,166.67,166.52,0.1]
[1729465690364,1.00011411,166.67,166.53,0.1]
[1729465690588,1.00011411,166.67,166.52,0.1]
[1729465690762,17.94,166.66,166.52,0.1]
[1729465691187,17.94,166.66,166.53,0.1]
[1729465691374,17.94,166.66,166.52,20.1]
[1729465691880,17.94,166.65,166.54,20.0]
[1729465692372,41.716884,166.66,166.54,20.1]
[1729465692790,23.776884,166.66,166.57,20.0]
[1729465693178,0.90011411,166.67,166.57,20.0]
[1729465694368,23.776884,166.66,166.57,20.0]
[1729465694789,23.776884,166.66,166.57,19.5]
[1729465697471,17.94,166.65,166.56,31.1515]
[1729465697672,23.776884,166.64,166.56,31.1515]
[1729465697885,24.67718029,166.64,166.56,31.1515]
[1729465698791,17.94,166.63,166.56,31.1515]
[1729465698996,24.67718029,166.64,166.56,31.1515]
[1729465698997,23.776884,166.62,166.56,31.1515]
[1729465699202,0.90029629,166.64,166.57,20.0]
[1729465699378,0.90029629,166.64,166.57,40.96858668]
[1729465699576,0.90029629,166.64,166.57,40.86858668]
[1729465699778,0.90029629,166.64,166.57,32.207]
[1729465700100,0.90029629,166.64,166.57,32.307]
[1729465700447,0.90029629,166.64,166.58,0.1]
[1729465700599,42.8738,166.73,166.61,0.1]
[1729465700794,42.7738,166.73,166.62,8.66158668]
[1729465700996,1.1,166.75,166.64,32.7559]
[1729465701224,1.1,166.75,166.65,28.66158668]
[1729465701448,1.99991063,166.75,166.65,28.66158668]
[1729465701720,1.89991063,166.75,166.65,28.66158668]
[1729465702024,1.89991063,166.75,166.67,20.1]
[1729465702212,1.89966941,166.75,166.68,0.1]
[1729465702526,1.89966941,166.75,166.67,28.66158668]
[1729465702527,1.89966941,166.75,166.71,0.1]
[1729465702739,1.89966941,166.75,166.72,31.8635]
[1729465704048,1.0,166.75,166.74,32.5154]
[1729465705022,0.89926122,166.82,166.76,0.1]
[1729465705216,0.89926122,166.82,166.78,0.1]
[1729465705615,60.6629,166.9,166.78,0.1]
[1729465706009,60.6629,166.9,166.79,0.1]
[1729465706010,13.4850738,166.9,166.79,0.1]
[1729465706214,0.8990738,166.9,166.81,20.1]
[1729465706509,0.8990738,166.9,166.82,0.1]
[1729465707391,0.8990738,166.9,166.81,20.0]
[1729465707392,0.8990738,166.9,166.86,0.1]
[1729465707591,0.89868883,166.91,166.86,0.1]
[1729465707808,0.89868883,166.91,166.87,0.1]
[1729465708424,0.89868883,166.91,166.89,0.1]
[1729465708786,0.89868883,166.91,166.86,0.1]
[1729465709110,0.89868883,166.91,166.85,20.0]
[1729465710398,23.776884,166.9,166.85,20.0]
[1729465710902,23.776884,166.9,166.8,32.6132]
[1729465711098,0.89868883,166.91,166.8,32.6132]
[1729465711099,23.776884,166.91,166.8,32.6132]
[1729465711613,23.776884,166.89,166.8,32.6132]
[1729465711814,24.67584377,166.89,166.8,32.6132]
[1729465712302,24.67584377,166.89,166.81,20.0]
[1729465713986,24.67584377,166.89,166.76,20.0]
[1729465714192,23.776884,166.85,166.75,31.1767]
[1729465714493,24.67605125,166.85,166.75,31.1767]
[1729465715412,24.67605125,166.85,166.76,20.0]
[1729465715797,17.94,166.84,166.76,20.0]
[1729465715993,24.67605125,166.85,166.72,0.1]
[1729465716201,24.67605125,166.85,166.74,0.1]
[1729465716990,24.67605125,166.85,166.73,0.1]
[1729465717396,24.67605125,166.85,166.75,0.1]
[1729465718013,0.89916725,166.85,166.75,0.1]
[1729465718219,0.89916725,166.85,166.74,0.1]
[1729465718613,0.89916725,166.85,166.75,0.1]
[1729465718813,0.89916725,166.85,166.74,0.1]
[1729465719418,23.776884,166.84,166.74,0.1]
[1729465720714,23.776884,166.84,166.71,31.4077]
[1729465720900,23.776884,166.84,166.74,0.1]
[1729465721210,23.776884,166.84,166.75,0.1]
[1729465721823,23.776884,166.84,166.74,0.1]
[1729465722214,23.776884,166.84,166.71,31.4077]
[1729465722817,36.973984,166.82,166.71,31.3077]
[1729465723028,23.776884,166.8,166.71,31.3077]
[1729465723612,23.776884,166.81,166.71,31.3077]
[1729465723925,23.776884,166.81,166.71,31.4077]
[1729465724126,23.776884,166.81,166.72,0.1]
[1729465724427,23.776884,166.81,166.71,31.4077]
[1729465724598,23.776884,166.79,166.68,0.1]
[1729465724800,23.776884,166.79,166.67,32.4293]
[1729465724998,23.776884,166.76,166.67,32.4293]
[1729465725425,23.776884,166.77,166.67,32.4293]
[1729465725626,23.776884,166.75,166.64,0.1]
[1729465725819,24.67656972,166.75,166.64,0.1]
[1729465726527,24.67656972,166.75,166.63,30.565]
[1729465727022,29.47416972,166.75,166.63,30.665]
[1729465727217,29.47416972,166.75,166.63,30.565]
[1729465727422,23.776884,166.73,166.63,30.565]
[1729465728004,41.702884,166.73,166.63,30.565]
[1729465728913,23.776884,166.71,166.59,32.9049]
[1729465729218,23.776884,166.69,166.59,32.8049]
[1729465729424,41.716884,166.69,166.59,32.8049]
[1729465729719,24.67701724,166.67,166.59,32.8049]
[1729465730022,42.61701724,166.67,166.55,32.8049]
[1729465730223,23.776884,166.65,166.55,32.8049]
[1729465730726,23.776884,166.66,166.56,0.1]
[1729465731027,23.776884,166.66,166.57,0.1]
[1729465732397,23.776884,166.66,166.56,20.1]
[1729465733620,23.776884,166.66,166.56,20.0]
[1729465733921,23.776884,166.66,166.56,20.1]
[1729465735912,23.776884,166.64,166.56,20.1]
[1729465736311,23.776884,166.66,166.56,20.1]
[1729465736825,0.90013324,166.67,166.58,20.0]
[1729465737032,48.8464,166.66,166.55,32.8049]
[1729465737209,4.8004,166.65,166.55,32.8049]
[1729465737526,48.8464,166.66,166.55,32.8049]
[1729465737734,4.8004,166.65,166.55,32.8049]
[1729465738029,23.776884,166.65,166.55,32.8049]
[1729465738534,28.577584,166.65,166.55,32.8049]
[1729465738702,23.776884,166.63,166.55,32.8049]
[1729465739035,24.67742013,166.63,166.55,32.8049]
[1729465739433,24.67742013,166.63,166.56,20.0]
[1729465740630,24.67742013,166.63,166.53,12.3715]
[1729465740807,24.67742013,166.63,166.54,20.0]
[1729465741333,24.67742013,166.63,166.55,0.1]
[1729465741526,24.67742013,166.63,166.54,20.1]
[1729465741831,24.67742013,166.63,166.54,20.0]
[1729465742421,24.67742013,166.63,166.54,20.1]
[1729465743932,24.67742013,166.63,166.56,0.1]
[1729465744115,24.67742013,166.63,166.54,20.1]
[1729465744310,24.67742013,166.63,166.54,20.0]
[1729465745043,24.67742013,166.63,166.51,31.3576]
[1729465745221,24.67742013,166.63,166.53,0.1]
[1729465745810,24.67742013,166.63,166.54,0.1]
[1729465746032,24.67742013,166.63,166.53,0.1]
[1729465746718,24.67742013,166.63,166.54,0.1]
[1729465747234,24.67742013,166.63,166.57,0.1]
[1729465747235,0.90053613,166.63,166.57,0.1]
[1729465747534,0.90053613,166.63,166.61,0.1]
[1729465747717,0.90013324,166.67,166.61,0.1]
[1729465748519,0.90013324,166.67,166.62,0.1]
[1729465749035,0.90013324,166.67,166.6,19.1]
[1729465749527,17.9296,166.73,166.6,19.1]
[1729465749735,24.12932288,166.73,166.6,19.1]
[1729465750238,17.9296,166.73,166.6,19.1]
[1729465750540,23.776884,166.72,166.6,19.1]
[1729465756734,14.031097,166.73,166.6,19.1]
[1729465756936,0.899797,166.73,166.6,25.54709508]
[1729465757234,0.899797,166.73,166.63,12.1621]
[1729465757432,0.899797,166.73,166.66,20.0]
[1729465758638,23.776884,166.72,166.66,20.0]
[1729465761430,0.899797,166.73,166.66,20.0]
[1729465763024,27.43215436,166.81,166.66,20.0]
[1729465764016,21.2236528,166.81,166.66,20.0]
[1729465764215,22.12325949,166.81,166.66,28.66158668]
[1729465765223,4.7967,166.78,166.65,30.7584]
[1729465765437,24.67659862,166.77,166.65,30.7584]
[1729465766225,24.67659862,166.77,166.66,8.66158668]
[1729465766443,24.67659862,166.77,166.67,20.0]
[1729465766636,24.67659862,166.77,166.67,28.66158668]
[1729465766842,23.776884,166.75,166.66,20.0]
[1729465767447,23.776884,166.75,166.65,30.7584]
[1729465768842,23.776884,166.75,166.66,20.0]
[1729465769040,23.776884,166.76,166.66,20.0]
[1729465770648,0.89971462,166.77,166.66,20.0]
[1729465770851,0.89971462,166.77,166.65,39.41998668]
[1729465771153,0.89971462,166.77,166.65,30.7584]
[1729465771932,23.776884,166.76,166.66,20.0]
[1729465772338,28.574184,166.76,166.66,20.0]
[1729465772536,23.776884,166.76,166.66,20.0]
[1729465774955,41.716884,166.76,166.65,30.7584]
[1729465775154,23.776884,166.72,166.63,12.1621]
[1729465775357,23.776884,166.72,166.61,31.6191]
[1729465776054,56.415284,166.72,166.61,31.6191]
[1729465776650,23.776884,166.7,166.61,31.6191]
[1729465777941,23.776884,166.7,166.5,0.1]
[1729465777942,23.776884,166.67,166.55,43.8531]
[1729465779245,23.776884,166.67,166.56,20.0]
[1729465779447,23.776884,166.67,166.55,43.8531]
[1729465779661,23.776884,166.67,166.55,52.51468668]
[1729465780664,51.54828135,166.72,166.57,20.0]
[1729465781665,23.776884,166.71,166.57,20.0]
[1729465781866,23.776884,166.71,166.57,8.66158668]
[1729465782083,23.776884,166.71,166.58,20.0]
[1729465782364,28.575584,166.71,166.58,20.0]
[1729465782773,28.575584,166.71,166.56,20.0]
[1729465784562,23.776884,166.71,166.56,20.0]
[1729465786075,4.799,166.7,166.56,20.0]
[1729465786366,23.776884,166.69,166.55,43.8531]
[1729465787450,24.67707788,166.69,166.56,20.0]
[1729465792284,23.776884,166.65,166.55,31.2519]
[1729465792450,12.8349,166.67,166.55,31.2519]
[1729465792651,23.776884,166.66,166.55,31.2519]
[1729465793377,23.776884,166.66,166.56,20.0]
[1729465793551,23.776884,166.66,166.56,28.66158668]
[1729465794364,23.776884,166.66,166.56,20.0]
[1729465794870,24.67706533,166.66,166.56,20.0]
[1729465797055,0.90018133,166.66,166.58,20.0]
[1729465797251,0.90018133,166.66,166.58,41.34088668]
[1729465799575,23.776884,166.68,166.58,41.34088668]
[1729465800780,0.90019388,166.69,166.61,20.0]
[1729465800981,0.90019388,166.69,166.61,28.66158668]
[1729465801653,13.2347,166.76,166.63,20.0]
[1729465801852,30.3431,166.77,166.65,20.0]
[1729465802077,30.3431,166.77,166.67,20.0]
[1729465802280,30.3431,166.77,166.67,28.66158668]
[1729465802770,31.24267739,166.77,166.67,28.66158668]
[1729465803373,31.24267739,166.77,166.65,20.0]
[1729465803675,23.776884,166.76,166.65,20.0]
[1729465804581,28.574184,166.76,166.65,20.0]
[1729465805388,4.7978,166.75,166.65,20.0]
[1729465805596,23.776884,166.74,166.65,20.0]
[1729465806086,23.776884,166.75,166.65,20.0]
[1729465806467,23.776884,166.76,166.65,28.66158668]
[1729465807683,23.776884,166.74,166.64,32.2519]
[1729465807893,23.776884,166.72,166.64,32.2519]
[1729465809469,0.89989665,166.74,166.64,32.2519]
[1729465809786,23.776884,166.73,166.65,20.0]
[1729465812585,0.89989665,166.74,166.65,20.0]
[1729465813784,23.776884,166.73,166.65,20.0]
[1729465814984,0.89989665,166.74,166.65,20.0]
[1729465815374,0.89989665,166.74,166.65,28.66158668]
[1729465817267,23.776884,166.73,166.65,20.0]
[1729465819384,0.89957739,166.77,166.67,20.0]
[1729465819584,0.89957739,166.77,166.67,28.66158668]
[1729465819785,0.89957739,166.77,166.68,8.66158668]
[1729465821010,0.99957739,166.77,166.66,13.2986]
[1729465821385,0.89957739,166.77,166.66,13.2986]
[1729465821587,23.776884,166.76,166.66,13.2986]
[1729465827403,23.776884,166.76,166.66,21.96018668]
[1729465828602,0.89957739,166.77,166.67,20.0]
[1729465828807,0.89957739,166.77,166.69,20.0]
[1729465828983,47.9908,166.86,166.71,20.0]
[1729465829305,47.9908,166.86,166.72,8.66158668]
[1729465829477,43.1961,166.86,166.73,33.3222]